fUST/lending_fUST_20240607
["ID","MTS","AMOUNT","RATE_DAILY","PERIOD"]
[328687119,1717705753151,-500.0,0.00019178,2]
[328687120,1717705753177,-373.83359843,0.00019178,2]
[328687121,1717705753204,-500.0,0.00019178,2]
[328687122,1717705753233,-500.0,0.00019178,2]
[328687123,1717705753259,-500.0,0.00019178,2]
[328687124,1717705753285,-500.0,0.00019178,2]
[328687125,1717705753309,-500.0,0.00019178,2]
[328687126,1717705753336,-500.0,0.00019178,2]
[328687127,1717705753363,-270.91026571,0.00019178,2]
[328687128,1717705755210,-229.08973429,0.00019178,2]
[328687129,1717705755235,-500.0,0.00019178,2]
[328687130,1717705755261,-450.0,0.00019178,2]
[328687131,1717705755285,-500.0,0.00019178,2]
[328687132,1717705755310,-500.0,0.00019178,2]
[328687133,1717705755334,-500.0,0.00019178,2]
[328687134,1717705755358,-500.0,0.00019178,2]
[328687135,1717705755381,-500.0,0.00019178,2]
[328687136,1717705755404,-655.69223994,0.00019239,2]
[328687137,1717705755424,-163.73640345,0.0001934,2]
[328687138,1717705755445,-681.75739941,0.00019554,2]
[328687139,1717705755470,-163.73640345,0.000199,2]
[328687140,1717705755490,-585.8590925,0.00019985,2]
[328687141,1717705755512,-225.05706064,0.0002,2]
[328687142,1717705755533,-4238.76986879,0.0002,2]
[328687143,1717705755554,-655.69223989,0.00020333,2]
[328687144,1717705755575,-681.75739941,0.00021313,2]
[328687145,1717705755598,-204.63,0.00021418,3]
[328687146,1717705755621,-655.69223989,0.00021428,2]
[328687147,1717705755643,-409.27,0.00021703,3]
[328687148,1717705755663,-166.666666,0.00021918,2]
[328687149,1717705755684,-169.450643,0.00022507,2]
[328687150,1717705755706,-655.69223989,0.00022522,2]
[328687151,1717705755728,-409.26,0.00022788,3]
[328687155,1717705773046,258.76036945,0.00022434,2]
[328687220,1717705833400,-476.89084109,0.000189,2]
[328687221,1717705833409,-182.35675715,0.00022434,2]
[328687222,1717705833419,-315.31611107,0.00023072,2]
[328687235,1717705837884,-366.44128834,0.00023072,2]
[328687236,1717705837893,-818.54,0.00023073,3]
[328687237,1717705837903,-613.92,0.00023114,3]
[328687238,1717705837912,-790.3654019,0.00023125,2]
[328687239,1717705837922,-24900.0,0.00023125,2]
[328687240,1717705837933,-655.69223989,0.00023617,2]
[328687241,1717705837943,-476.89084109,0.000239,2]
[328687242,1717705837952,-522.88358079,0.00024222,2]
[328687243,1717705837962,-923.09205991,0.00024223,2]
[328687244,1717705837973,-166.666666,0.00024493,2]
[328687245,1717705837983,-220.3001582,0.00024603,2]
[328687246,1717705837992,-500.0,0.00024656,2]
[328687247,1717705838006,-500.0,0.00024656,2]
[328687248,1717705838015,-500.0,0.00024656,2]
[328687249,1717705838025,-532.38335984,0.00024656,2]
[328687250,1717705838036,-617.68,0.00024657,2]
[328687251,1717705838045,-349.67082831,0.00024657,2]
[328687252,1717705838055,-500.0,0.00024657,2]
[328687253,1717705838065,-500.0,0.00024657,2]
[328687254,1717705838075,-692.38,0.00024657,2]
[328687255,1717705838084,-500.0,0.00024657,2]
[328687256,1717705838093,-500.0,0.00024657,2]
[328687257,1717705838103,-500.0,0.00024657,2]
[328687258,1717705838113,-500.0,0.00024657,2]
[328687259,1717705838123,-500.0,0.00024657,2]
[328687260,1717705838132,-500.0,0.00024657,2]
[328687261,1717705838143,-500.0,0.00024657,2]
[328687262,1717705838152,-500.0,0.00024657,2]
[328687263,1717705838162,-500.0,0.00024657,2]
[328687264,1717705838172,-500.0,0.00024657,2]
[328687265,1717705838181,-500.0,0.00024657,2]
[328687266,1717705838191,-500.0,0.00024657,2]
[328687267,1717705838201,-500.0,0.00024657,2]
[328687268,1717705838211,-500.0,0.00024657,2]
[328687269,1717705838222,-500.0,0.00024657,2]
[328687270,1717705838232,-500.0,0.00024657,2]
[328687271,1717705838243,-500.0,0.00024657,2]
[328687272,1717705838252,-500.0,0.00024657,2]
[328687273,1717705838262,-500.0,0.00024657,2]
[328687274,1717705838271,-500.0,0.00024657,2]
[328687275,1717705838281,-500.0,0.00024657,2]
[328687276,1717705838290,-500.0,0.00024657,2]
[328687277,1717705838300,-500.0,0.00024657,2]
[328687278,1717705838310,-500.0,0.00024657,2]
[328687279,1717705838319,-500.0,0.00024657,2]
[328687280,1717705838329,-500.0,0.00024657,2]
[328687282,1717705838338,-500.0,0.00024657,2]
[328687284,1717705838347,-556.05,0.00024657,2]
[328687285,1717705838357,-500.0,0.00024657,2]
[328687286,1717705838367,-501.62264052,0.00024657,2]
[328687287,1717705838377,-504.91385984,0.00024657,2]
[328687288,1717705838387,-500.0,0.00024657,2]
[328687289,1717705838396,-500.0,0.00024657,2]
[328687290,1717705838406,-501.11679139,0.00024657,2]
[328687291,1717705838416,-500.0,0.00024657,2]
[328687292,1717705838426,-500.0,0.00024657,2]
[328687293,1717705838436,-500.0,0.00024657,2]
[328687294,1717705838447,-500.0,0.00024657,2]
[328687295,1717705838456,-500.0,0.00024657,2]
[328687296,1717705838466,-500.0,0.00024657,2]
[328687297,1717705838476,-624.69,0.00024657,2]
[328687298,1717705838489,-500.0,0.00024657,2]
[328687299,1717705838499,-248.96029522,0.00024657,2]
[328687300,1717705838586,-251.03970478,0.00024657,2]
[328687301,1717705838596,-500.0,0.00024657,2]
[328687302,1717705838606,-500.0,0.00024657,2]
[328687303,1717705838616,-500.0,0.00024657,2]
[328687304,1717705838625,-298.16,0.00024657,2]
[328687305,1717705838635,-500.0,0.00024657,2]
[328687306,1717705838645,-630.04700808,0.00024657,2]
[328687307,1717705838654,-500.0,0.00024657,2]
[328687308,1717705838664,-118.33388714,0.00024657,2]
[328687309,1717705838676,-340.9018513,0.00024657,2]
[328687310,1717705838686,-500.0,0.00024657,2]
[328687311,1717705838695,-500.0,0.00024657,2]
[328687312,1717705838706,-577.77,0.00024657,2]
[328687313,1717705838716,-1851.18,0.00024657,2]
[328687314,1717705838726,-500.0,0.00024657,2]
[328687315,1717705838736,-720.94,0.00024657,2]
[328687316,1717705838745,-500.0,0.00024657,2]
[328687317,1717705838755,-828.68,0.00024657,2]
[328687318,1717705838764,-609.31,0.00024657,2]
[328687319,1717705838774,-995.72,0.00024657,2]
[328687320,1717705838783,-500.0,0.00024657,2]
[328687321,1717705838793,-500.0,0.00024657,2]
[328687322,1717705838802,-500.0,0.00024657,2]
[328687323,1717705838812,-500.0,0.00024657,2]
[328687324,1717705838821,-500.0,0.00024657,2]
[328687325,1717705838831,-500.0,0.00024657,2]
[328687326,1717705838840,-1045.85,0.00024657,2]
[328687327,1717705838850,-2080.6,0.00024657,2]
[328687328,1717705838859,-500.0,0.00024657,2]
[328687329,1717705838869,-2360.66,0.00024657,2]
[328687330,1717705838879,-500.0,0.00024657,2]
[328687331,1717705838889,-2416.3,0.00024657,2]
[328687332,1717705838898,-500.0,0.00024657,2]
[328687333,1717705838907,-500.0,0.00024657,2]
[328687334,1717705838917,-2919.33,0.00024657,2]
[328687335,1717705838927,-1035.83,0.00024657,2]
[328687336,1717705838937,-568.2,0.00024657,2]
[328687337,1717705838946,-500.0,0.00024657,2]
[328687338,1717705838956,-3095.75,0.00024657,2]
[328687339,1717705838966,-500.0,0.00024657,2]
[328687340,1717705838976,-500.0,0.00024657,2]
[328687341,1717705838985,-500.0,0.00024657,2]
[328687342,1717705838995,-500.0,0.00024657,2]
[328687343,1717705839004,-500.0,0.00024657,2]
[328687344,1717705839014,-500.0,0.00024657,2]
[328687345,1717705839024,-500.0,0.00024657,2]
[328687346,1717705839033,-500.0,0.00024657,2]
[328687347,1717705839043,-500.0,0.00024657,2]
[328687348,1717705839053,-333.5,0.00024657,2]
[328687349,1717705839063,-655.69223989,0.00024711,2]
[328687350,1717705839073,-681.75739941,0.00024831,2]
[328687351,1717705839083,-9085.03,0.00024861,3]
[328687352,1717705839093,-500.0,0.0002487,2]
[328687353,1717705839103,-239.2310555,0.0002487,2]
[328687354,1717705839113,-202.47425153,0.0002487,2]
[328687355,1717705839122,-10902.03,0.00024871,3]
[328687356,1717705839133,-7437.54,0.00024881,3]
[328687357,1717705839145,-500.0,0.00024931,2]
[328687358,1717705839155,-692.38,0.00024931,2]
[328687359,1717705839166,-500.0,0.00024931,2]
[328687360,1717705839177,-500.0,0.00024931,2]
[328687361,1717705839188,-500.0,0.00024931,2]
[328687362,1717705839199,-500.0,0.00024931,2]
[328687363,1717705839210,-500.0,0.00024931,2]
[328687364,1717705839223,-500.0,0.00024931,2]
[328687365,1717705839234,-500.0,0.00024931,2]
[328687366,1717705839244,-500.0,0.00024931,2]
[328687367,1717705839255,-500.0,0.00024931,2]
[328687368,1717705839267,-500.0,0.00024931,2]
[328687369,1717705839277,-556.05,0.00024931,2]
[328687370,1717705839287,-500.0,0.00024931,2]
[328687371,1717705839298,-642.22,0.00024931,2]
[328687372,1717705839308,-500.0,0.00024931,2]
[328687373,1717705839318,-624.69,0.00024931,2]
[328687374,1717705839329,-500.0,0.00024931,2]
[328687375,1717705839340,-500.0,0.00024931,2]
[328687376,1717705839350,-577.77,0.00024931,2]
[328687377,1717705839361,-1851.18,0.00024931,2]
[328687378,1717705839380,-500.0,0.00024931,2]
[328687379,1717705839392,-720.94,0.00024931,2]
[328687380,1717705839403,-500.0,0.00024931,2]
[328687381,1717705839413,-828.68,0.00024931,2]
[328687382,1717705839424,-609.31,0.00024931,2]
[328687383,1717705839434,-995.72,0.00024931,2]
[328687384,1717705839444,-500.0,0.00024931,2]
[328687385,1717705839455,-500.0,0.00024931,2]
[328687386,1717705839469,-500.0,0.00024931,2]
[328687387,1717705839480,-500.0,0.00024931,2]
[328687388,1717705839492,-500.0,0.00024931,2]
[328687389,1717705839503,-1045.85,0.00024931,2]
[328687390,1717705839514,-2080.6,0.00024931,2]
[328687391,1717705839526,-2360.66,0.00024931,2]
[328687392,1717705839537,-2284.64023888,0.00024931,2]
[328687396,1717705841944,-500.0,0.00024657,2]
[328687397,1717705841955,-131.65976112,0.00024931,2]
[328687398,1717705841965,-2919.33,0.00024931,2]
[328687399,1717705841979,-1035.83,0.00024931,2]
[328687400,1717705841990,-568.2,0.00024931,2]
[328687401,1717705842000,-500.0,0.00024931,2]
[328687402,1717705842010,-3095.75,0.00024931,2]
[328687403,1717705842020,-500.0,0.00024931,2]
[328687404,1717705842029,-500.0,0.00024931,2]
[328687405,1717705842040,-500.0,0.00024931,2]
[328687406,1717705842050,-500.0,0.00024931,2]
[328687407,1717705842060,-500.0,0.00024931,2]
[328687408,1717705842071,-500.0,0.00024931,2]
[328687409,1717705842082,-500.0,0.00024931,2]
[328687410,1717705842092,-252.47,0.00024931,2]
[328687411,1717705842102,-1000.0,0.00025,9]
[328687412,1717705842112,-500.0,0.00025205,2]
[328687413,1717705842122,-692.38,0.00025205,2]
[328687414,1717705842132,-500.0,0.00025205,2]
[328687415,1717705842143,-500.0,0.00025205,2]
[328687416,1717705842153,-500.0,0.00025205,2]
[328687417,1717705842163,-500.0,0.00025205,2]
[328687418,1717705842173,-500.0,0.00025205,2]
[328687419,1717705842183,-500.0,0.00025205,2]
[328687420,1717705842193,-500.0,0.00025205,2]
[328687421,1717705842203,-500.0,0.00025205,2]
[328687422,1717705842212,-500.0,0.00025205,2]
[328687423,1717705842225,-556.05,0.00025205,2]
[328687424,1717705842235,-500.0,0.00025205,2]
[328687425,1717705842246,-624.69,0.00025205,2]
[328687426,1717705842257,-500.0,0.00025205,2]
[328687427,1717705842267,-577.77,0.00025205,2]
[328687428,1717705842277,-1851.18,0.00025205,2]
[328687429,1717705842287,-500.0,0.00025205,2]
[328687430,1717705842297,-720.94,0.00025205,2]
[328687431,1717705842307,-500.0,0.00025205,2]
[328687432,1717705842317,-828.68,0.00025205,2]
[328687433,1717705842326,-609.31,0.00025205,2]
[328687434,1717705842336,-995.72,0.00025205,2]
[328687435,1717705842345,-500.0,0.00025205,2]
[328687436,1717705842355,-500.0,0.00025205,2]
[328687437,1717705842365,-500.0,0.00025205,2]
[328687438,1717705842375,-500.0,0.00025205,2]
[328687440,1717705842384,-1045.85,0.00025205,2]
[328687441,1717705842394,-2080.6,0.00025205,2]
[328687442,1717705842578,-2093.69023885,0.00025205,2]
[328687443,1717705842598,-266.96976115,0.00025205,2]
[328687444,1717705842609,-2416.3,0.00025205,2]
[328687446,1717705842618,-2919.33,0.00025205,2]
[328687448,1717705842630,-1035.83,0.00025205,2]
[328687450,1717705842640,-568.2,0.00025205,2]
[328687451,1717705842651,-500.0,0.00025205,2]
[328687452,1717705842661,-338.57872327,0.00025205,2]
[328687454,1717705842674,-2757.17127673,0.00025205,2]
[328687456,1717705842684,-500.0,0.00025205,2]
[328687458,1717705842694,-500.0,0.00025205,2]
[328687461,1717705842704,-500.0,0.00025205,2]
[328687464,1717705842714,-500.0,0.00025205,2]
[328687466,1717705842724,-500.0,0.00025205,2]
[328687469,1717705842734,-500.0,0.00025205,2]
[328687471,1717705842744,-635.52031882,0.00025205,2]
[328687474,1717705842754,-4236.27632862,0.00025364,2]
[328687477,1717705842765,-7570.86,0.0002539,3]
[328687479,1717705842775,-507.72121347,0.000254,7]
[328687481,1717705842784,-11938.0390793,0.000254,3]
[328687482,1717705842796,-3783.49999999,0.000254,3]
[328687524,1717705843561,-323.57684628,0.000254,3]
[328687542,1717705843742,-467.82282743,0.000254,3]
[328687613,1717705846011,-21151.31923073,0.000254,3]
[328687884,1717705894303,154.93802479,9.999e-05,2]
[328687885,1717705894339,2057.52871167,9.999e-05,2]
[328687886,1717705905361,659.64623615,9.999e-05,2]
[328687887,1717705907628,154.95351395,9.999e-05,2]
[328687888,1717705908036,154.95351395,9.999e-05,2]
[328687889,1717705908152,154.95351395,9.999e-05,2]
[328687890,1717705910407,154.95351395,9.999e-05,2]
[328687892,1717705911730,692.15201027,9.999e-05,2]
[328687893,1717705922970,721.95297279,9.999e-05,2]
[328687894,1717705935020,837.71685131,9.999e-05,2]
[328687895,1717705939183,309.95506397,9.999e-05,2]
[328687896,1717705939225,759.55453663,9.999e-05,2]
[328687897,1717705940993,1281.31823399,9.999e-05,2]
[328687898,1717705946654,244.3289253,9.999e-05,2]
[328687899,1717705946711,303.11673738,9.999e-05,2]
[328687900,1717705948985,1500.61628881,9.999e-05,2]
[328687901,1717705950393,154.95351395,9.999e-05,2]
[328687902,1717705960019,154.95351395,9.999e-05,2]
[328687903,1717706026292,3638.63098961,9.999e-05,2]
[328687904,1717706056224,3628.02546386,9.999e-05,2]
[328687905,1717706061061,154.95351395,9.999e-05,2]
[328687907,1717706084889,284.42018081,0.000137,2]
[328687917,1717706166135,489.4618939,9.999e-05,2]
[328687920,1717706472128,-692.15201027,0.00014999,2]
[328687921,1717706472164,-15.69597946,0.00015,2]
[328687922,1717706479736,-177.11641921,0.00014999,2]
[328687923,1717706479761,-345.76716158,0.00014999,2]
[328687924,1717706757725,154.95351395,9.999e-05,2]
[328687925,1717706847148,-759.55453663,0.00014982,2]
[328687926,1717706847169,-2112.56090718,0.00014983,2]
[328687927,1717706847192,-926.96947987,0.00014983,2]
[328687928,1717706847213,-926.96947987,0.00014983,2]
[328687929,1717706847234,-1982.61645022,0.00014984,2]
[328687930,1717706847255,-16303.933972,0.00015422,2]
[328687931,1717706847276,-5790.54494072,0.00015842,2]
[328687932,1717706917055,187.27413947,9.999e-05,2]
[328687933,1717706929684,20751.4982584,9.999e-05,2]
[328687934,1717706929710,13321.86232546,9.999e-05,2]
[328687935,1717706936193,185.27974199,9.999e-05,2]
[328687936,1717706952207,292.39507624,9.999e-05,2]
[328687937,1717706953096,-154.95351395,0.0001584,2]
[328687938,1717706953120,-157.06411215,0.00015841,2]
[328687939,1717706953142,-13796.72154095,0.00015842,2]
[328687940,1717706957091,-2035.79578747,0.00015839,2]
[328687941,1717706957113,-5312.73351833,0.00015842,2]
[328687942,1717706957133,-154.95351395,0.00015842,2]
[328687943,1717706957156,-596.95549392,0.00015879,2]
[328687944,1717706957177,-572.485525,0.00015979,2]
[328687945,1717706957197,-20.85716133,0.00016009,2]
[328687946,1717706957449,9217.20122377,9.999e-05,2]
[328687947,1717706970100,-19298.65138035,0.00016008,2]
[328687948,1717706970121,-2979.14283867,0.00016009,2]
[328687949,1717706970143,-163.73640347,0.00017049,2]
[328687950,1717706970164,-2362.096299,0.0001705,2]
[328687951,1717706971526,245.26252199,9.999e-05,2]
[328687952,1717706971550,1657.61771907,9.999e-05,2]
[328687953,1717706972955,172.39995596,0.000136,2]
[328687954,1717706974319,-596.95549386,0.00017453,2]
[328687955,1717706974340,-2762.77347703,0.00018,2]
[328687956,1717706974363,-417.48241542,0.00018491,2]
[328687957,1717706974385,-596.95549386,0.00019028,2]
[328687958,1717706974406,-1282.49787033,0.00019124,2]
[328687959,1717706974428,-379.56092097,0.00019892,2]
[328687960,1717706974450,-835.38,0.00019988,3]
[328687961,1717706974472,-164.8847064,0.00019996,2]
[328687962,1717706974493,-449.03008774,0.00019996,2]
[328687963,1717706974514,-392.22967064,0.00019996,2]
[328687964,1717706974535,-162.13477306,0.00019996,2]
[328687965,1717706974557,-500.0,0.00019996,2]
[328687966,1717706974579,-381.66648704,0.00019996,2]
[328687967,1717706974604,-500.0,0.00019996,2]
[328687968,1717706974636,-500.0,0.00019996,2]
[328687969,1717706974668,-500.0,0.00019996,2]
[328687970,1717706974698,-500.0,0.00019996,2]
[328687971,1717706974726,-500.0,0.00019996,2]
[328687972,1717706974755,-500.0,0.00019996,2]
[328687973,1717706974783,-500.0,0.00019996,2]
[328687974,1717706974812,-500.0,0.00019996,2]
[328687975,1717706974842,-500.0,0.00019996,2]
[328687976,1717706974872,-500.0,0.00019996,2]
[328687977,1717706974903,-500.0,0.00019996,2]
[328687978,1717706974932,-500.0,0.00019996,2]
[328687979,1717706974960,-500.0,0.00019996,2]
[328687980,1717706974988,-500.0,0.00019996,2]
[328687981,1717706975023,-500.0,0.00019996,2]
[328687982,1717706975050,-500.0,0.00019996,2]
[328687983,1717706975078,-500.0,0.00019996,2]
[328687984,1717706975103,-500.0,0.00019996,2]
[328687985,1717706975129,-500.0,0.00019996,2]
[328687986,1717706975155,-500.0,0.00019996,2]
[328687987,1717706975183,-500.0,0.00019996,2]
[328687988,1717706975212,-500.0,0.00019996,2]
[328687989,1717706975241,-540.02864166,0.00019996,2]
[328687990,1717706975270,-500.0,0.00019996,2]
[328687991,1717706975300,-500.0,0.00019996,2]
[328687992,1717706975326,-500.0,0.00019996,2]
[328687993,1717706975351,-500.0,0.00019996,2]
[328687994,1717706975376,-500.0,0.00019996,2]
[328687995,1717706975403,-500.0,0.00019996,2]
[328687996,1717706975431,-500.0,0.00019996,2]
[328687997,1717706975460,-500.0,0.00019996,2]
[328687998,1717706975485,-500.0,0.00019996,2]
[328687999,1717706975513,-500.0,0.00019996,2]
[328688000,1717706975540,-500.0,0.00019996,2]
[328688001,1717706975567,-500.0,0.00019996,2]
[328688002,1717706975593,-500.0,0.00019996,2]
[328688003,1717706975618,-500.0,0.00019996,2]
[328688004,1717706975645,-500.0,0.00019996,2]
[328688005,1717706975671,-500.0,0.00019996,2]
[328688006,1717706975697,-500.0,0.00019996,2]
[328688007,1717706975723,-500.0,0.00019996,2]
[328688008,1717706975749,-500.0,0.00019996,2]
[328688009,1717706975776,-500.0,0.00019996,2]
[328688010,1717706975804,-500.0,0.00019996,2]
[328688011,1717706975830,-500.0,0.00019996,2]
[328688012,1717706975855,-500.0,0.00019996,2]
[328688013,1717706975880,-650.0,0.00019996,2]
[328688014,1717706975907,-500.0,0.00019996,2]
[328688015,1717706975933,-500.0,0.00019996,2]
[328688016,1717706975960,-500.0,0.00019996,2]
[328688017,1717706975988,-500.0,0.00019996,2]
[328688018,1717706976016,-500.0,0.00019996,2]
[328688019,1717706976047,-500.0,0.00019996,2]
[328688020,1717706976071,-59185.6548832,0.00019997,2]
[328688021,1717706976097,-20475.50821326,0.00019998,2]
[328688022,1717706976123,-5312.07781746,0.00019999,2]
[328688023,1717706976149,-471.94717193,0.0002,2]
[328688024,1717706976173,-268.8070893,0.0002,2]
[328688025,1717706976198,-1354.45712807,0.000206,2]
[328688026,1717706976223,-596.95549386,0.00020602,2]
[328688027,1717706976247,-379.56092097,0.00021052,2]
[328688028,1717706976269,-32567.48808477,0.00021398,2]
[328688029,1717706976293,-167.267576,0.00021918,2]
[328688030,1717706976317,-596.95549386,0.00022177,2]
[328688031,1717706976342,-379.56092097,0.00022211,2]
[328688032,1717706976365,-168.132025,0.00022217,2]
[328688033,1717706976391,-167.267576,0.00022773,2]
[328688034,1717706976604,166.03360622,0.00015,2]
[328688035,1717706976665,107.16008223,9.999e-05,2]
[328688036,1717706976691,666.93018819,9.999e-05,2]
[328688115,1717707041950,-265.04682529,0.00019298,2]
[328688116,1717707041959,-20933.11266542,0.00019995,2]
[328688152,1717707045198,-3539.38023459,0.00019995,2]
[328688161,1717707046296,-35076.45954125,0.00019995,2]
[328688162,1717707046306,-2112.56090718,0.00022997,2]
[328688163,1717707046316,-1982.61645022,0.00022998,2]
[328688164,1717707046325,-500.0,0.00022998,2]
[328688165,1717707046335,-500.0,0.00022998,2]
[328688166,1717707046344,-500.0,0.00022998,2]
[328688167,1717707046353,-500.0,0.00022998,2]
[328688168,1717707046363,-500.0,0.00022998,2]
[328688169,1717707046372,-469.00286417,0.00022998,2]
[328688170,1717707046382,-206.81901429,0.00023,2]
[328688171,1717707046391,-256.0,0.00023,2]
[328688172,1717707046400,-185.27974199,0.00023122,2]
[328688173,1717707046410,-528.62853978,0.00023123,2]
[328688174,1717707046420,-250.0,0.00023125,2]
[328688175,1717707046429,-701.2837482,0.00023125,2]
[328688176,1717707046438,-659.9640945,0.00023125,2]
[328688177,1717707046447,-256.0,0.00023288,2]
[328688178,1717707046457,-379.56092097,0.00023371,2]
[328688179,1717707046467,-167.267576,0.00023627,2]
[328688180,1717707046476,-572.485525,0.00023968,2]
[328688181,1717707046485,-256.0,0.00024164,2]
[328688182,1717707046495,-265.04682529,0.00024298,2]
[328688183,1717707046505,-167.267576,0.00024482,2]
[328688184,1717707046514,-166.666666,0.00024493,2]
[328688185,1717707046526,-379.56092097,0.0002453,2]
[328688186,1717707046535,-414.49994611,0.00024543,2]
[328688187,1717707046544,-192.44146617,0.00024543,2]
[328688188,1717707046553,-253.86060674,0.00024544,7]
[328688189,1717707046563,-40867.79552112,0.00024544,2]
[328688190,1717707046572,-239.70145455,0.00024655,2]
[328688191,1717707046584,-606.28251401,0.00024655,2]
[328688192,1717707046594,-162.99512303,0.00024655,2]
[328688193,1717707046603,-10536.38828398,0.00024655,2]
[328688194,1717707046614,-187.0955678,0.00024655,2]
[328688195,1717707046623,-309.84507746,0.00024655,2]
[328688196,1717707046633,-244.13864562,0.00024655,2]
[328688197,1717707046643,-2035.79578747,0.00024655,2]
[328688198,1717707046652,-433.39654251,0.00024655,2]
[328688199,1717707046662,-1804.13689593,0.00024655,2]
[328688200,1717707046862,-451.40188605,0.00024655,2]
[328688201,1717707046872,-1881.75684004,0.00024655,2]
[328688202,1717707046882,-443.35536304,0.00024655,2]
[328688203,1717707046892,-249.80234319,0.00024656,2]
[328688204,1717707046901,-11695.80734514,0.00024656,2]
[328688205,1717707046912,-500.0,0.00024657,2]
[328688206,1717707046922,-500.0,0.00024657,2]
[328688207,1717707046931,-500.0,0.00024657,2]
[328688208,1717707046940,-500.0,0.00024657,2]
[328688209,1717707046950,-500.0,0.00024657,2]
[328688210,1717707046960,-500.0,0.00024657,2]
[328688211,1717707046971,-500.0,0.00024657,2]
[328688212,1717707046980,-500.0,0.00024657,2]
[328688213,1717707046990,-500.0,0.00024657,2]
[328688214,1717707047000,-500.0,0.00024657,2]
[328688215,1717707047009,-500.0,0.00024657,2]
[328688216,1717707047023,-500.0,0.00024657,2]
[328688217,1717707047032,-500.0,0.00024657,2]
[328688218,1717707047041,-500.0,0.00024657,2]
[328688219,1717707047050,-500.0,0.00024657,2]
[328688220,1717707047060,-317.09866361,0.00024657,2]
[328688221,1717707047070,-496.35548321,0.00024657,2]
[328688222,1717707047080,-500.0,0.00024657,2]
[328688223,1717707047091,-500.0,0.00024657,2]
[328688224,1717707047101,-500.0,0.00024657,2]
[328688225,1717707047110,-500.0,0.00024657,2]
[328688226,1717707047119,-500.0,0.00024657,2]
[328688227,1717707047129,-500.0,0.00024657,2]
[328688228,1717707047139,-523.25687373,0.00024657,2]
[328688229,1717707047147,-500.0,0.00024657,2]
[328688230,1717707047157,-500.0,0.00024657,2]
[328688231,1717707047167,-500.0,0.00024657,2]
[328688232,1717707047177,-500.0,0.00024657,2]
[328688233,1717707047187,-500.0,0.00024657,2]
[328688234,1717707047196,-500.0,0.00024657,2]
[328688235,1717707047206,-500.0,0.00024657,2]
[328688236,1717707047216,-500.0,0.00024657,2]
[328688237,1717707047225,-500.0,0.00024657,2]
[328688238,1717707047235,-500.0,0.00024657,2]
[328688239,1717707047244,-500.0,0.00024657,2]
[328688240,1717707047254,-500.0,0.00024657,2]
[328688241,1717707047263,-500.0,0.00024657,2]
[328688242,1717707047274,-500.0,0.00024657,2]
[328688243,1717707047283,-500.0,0.00024657,2]
[328688244,1717707047293,-500.0,0.00024657,2]
[328688245,1717707047302,-500.0,0.00024657,2]
[328688246,1717707047311,-500.0,0.00024657,2]
[328688247,1717707047320,-500.0,0.00024657,2]
[328688248,1717707047329,-500.0,0.00024657,2]
[328688249,1717707047339,-500.0,0.00024657,2]
[328688250,1717707047348,-500.0,0.00024657,2]
[328688251,1717707047358,-500.0,0.00024657,2]
[328688252,1717707047367,-500.0,0.00024657,2]
[328688253,1717707047376,-500.0,0.00024657,2]
[328688254,1717707047385,-500.0,0.00024657,2]
[328688255,1717707047395,-500.0,0.00024657,2]